fUSD/lending_fUSD_20251103
["ID","MTS","AMOUNT","RATE_DAILY","PERIOD"]
[392950144,1762168081806,371.32579106,0.00036954,120]
[392950145,1762168081923,423.34238508,0.00036954,120]
[392950146,1762168083084,600.0,0.00013699,2]
[392950147,1762168083207,273.04238897,0.00013699,2]
[392950148,1762168083229,326.95761103,0.00013699,2]
[392950149,1762168083463,600.0,0.00013699,2]
[392950150,1762168083548,354.39872762,0.00036954,120]
[392950151,1762168083631,500.0,0.00036954,120]
[392950152,1762168083726,500.0,0.00036954,120]
[392950153,1762168083827,500.0,0.00036954,120]
[392950154,1762168083866,353.70310971,0.00013699,2]
[392950155,1762168083953,500.0,0.00036954,120]
[392950156,1762168084051,500.0,0.00036954,120]
[392950157,1762168084186,500.0,0.00036954,120]
[392950158,1762168084294,500.0,0.00036954,120]
[392950159,1762168084386,370.78408475,0.00036954,120]
[392950160,1762168084470,500.0,0.00036954,120]
[392950161,1762168084564,500.0,0.00036954,120]
[392950162,1762168084692,500.0,0.00036954,120]
[392950163,1762168084861,500.0,0.00036954,120]
[392950164,1762168084956,500.0,0.00036954,120]
[392950165,1762168085063,178.83604166,0.00036954,120]
[392950166,1762168085181,500.0,0.00036954,120]
[392950167,1762168085393,446.72385312,0.00036954,120]
[392950168,1762168085486,500.0,0.00036954,120]
[392950169,1762168085713,500.0,0.00036954,120]
[392950170,1762168085981,500.0,0.00036954,120]
[392950171,1762168086242,599.24480951,0.00036954,120]
[392950172,1762168086735,362.00039346,0.00036954,120]
[392950173,1762168087016,316.31067773,0.00036954,120]
[392950174,1762168087475,484.04363442,0.00036954,120]
[392950175,1762168087893,404.75961074,0.00036954,120]
[392950176,1762168088244,500.0,0.00036954,120]
[392950177,1762168088486,416.46120221,0.00036954,120]
[392950178,1762168088629,331.54226716,0.00036954,120]
[392950179,1762168089325,443.61441259,0.00036954,120]
[392950180,1762168089906,500.0,0.00036954,120]
[392950181,1762168089987,302.99974008,0.00036954,120]
[392950182,1762168090138,500.0,0.00036954,120]
[392950183,1762168090382,500.0,0.00036954,120]
[392950184,1762168090738,500.0,0.00036954,120]
[392950185,1762168090816,500.0,0.00036954,120]
[392950186,1762168091025,500.0,0.00036954,120]
[392950187,1762168091111,196.22787826,0.00036954,120]
[392950188,1762168091194,500.0,0.00036954,120]
[392950189,1762168091320,500.0,0.00036954,120]
[392950190,1762168091401,500.0,0.00036954,120]
[392950191,1762168091541,500.0,0.00036954,120]
[392950192,1762168091621,500.0,0.00036954,120]
[392950193,1762168091716,196.36478913,0.00036954,120]
[392950194,1762168091819,299.6811796,0.00036954,120]
[392950195,1762168091896,374.31056364,0.00036954,120]
[392950196,1762168091971,500.0,0.00036954,120]
[392950197,1762168092060,500.0,0.00036954,120]
[392950198,1762168092325,500.0,0.00036954,120]
[392950199,1762168092422,500.0,0.00036954,120]
[392950200,1762168092509,500.0,0.00036954,120]
[392950201,1762168092619,500.0,0.00036954,120]
[392950202,1762168092699,500.0,0.00036954,120]
[392950203,1762168092787,500.0,0.00036954,120]
[392950204,1762168092855,500.0,0.00036954,120]
[392950205,1762168092926,500.0,0.00036954,120]
[392950206,1762168093016,500.0,0.00036954,120]
[392950207,1762168093116,416.48959833,0.00036954,120]
[392950208,1762168093256,500.0,0.00036954,120]
[392950209,1762168093328,419.53880758,0.00036954,120]
[392950210,1762168093494,500.0,0.00036954,120]
[392950211,1762168093572,454.67570366,0.00036954,120]
[392950212,1762168093658,500.0,0.00036954,120]
[392950213,1762168093737,500.0,0.00036954,120]
[392950214,1762168093885,500.0,0.00036954,120]
[392950215,1762168093983,500.0,0.00036954,120]
[392950216,1762168094129,500.0,0.00036954,120]
[392950217,1762168094207,500.0,0.00036954,120]
[392950218,1762168094374,500.0,0.00036954,120]
[392950220,1762168094471,500.0,0.00036954,120]
[392950221,1762168094512,600.0,0.00013699,2]
[392950222,1762168094630,500.0,0.00036954,120]
[392950223,1762168094669,550.41,0.00013812,2]
[392950224,1762168094754,500.0,0.00036954,120]
[392950225,1762168094798,600.0,0.00013699,2]
[392950226,1762168094888,500.0,0.00036954,120]
[392950227,1762168095046,500.0,0.00036954,120]
[392950228,1762168095129,199.42642019,0.00036954,120]
[392950229,1762168095216,500.0,0.00036954,120]
[392950230,1762168095328,500.0,0.00036954,120]
[392950231,1762168095429,341.41550849,0.00036954,120]
[392950232,1762168095513,500.0,0.00036954,120]
[392950233,1762168095543,-111.2037352,0.00014388,2]
[392950234,1762168095624,500.0,0.00036954,120]
[392950235,1762168095700,500.0,0.00036954,120]
[392950236,1762168095790,488.69880771,0.00036954,120]
[392950237,1762168095893,500.0,0.00036954,120]
[392950238,1762168095972,500.0,0.00036954,120]
[392950239,1762168096010,98.7962648,0.00013699,2]
[392950240,1762168096033,501.2037352,0.00013699,2]
[392950241,1762168096119,500.0,0.00036954,120]
[392950242,1762168096200,500.0,0.00036954,120]
[392950243,1762168096266,600.0,0.00013699,2]
[392950244,1762168096347,500.0,0.00036954,120]
[392950245,1762168096434,500.0,0.00036954,120]
[392950246,1762168096479,600.0,0.00013699,2]
[392950247,1762168096580,365.85775684,0.00036954,120]
[392950248,1762168096661,500.0,0.00036954,120]
[392950249,1762168096698,600.0,0.00013699,2]
[392950250,1762168096796,163.90292484,0.00036954,120]
[392950251,1762168096841,600.0,0.00013699,2]
[392950252,1762168097080,600.0,0.00013699,2]
[392950253,1762168097727,500.0,0.00036954,120]
[392950254,1762168097854,500.0,0.00036954,120]
[392950255,1762168098256,500.0,0.00036954,120]
[392950256,1762168098369,157.13660947,0.00036954,120]
[392950257,1762168098461,500.0,0.00036954,120]
[392950258,1762168098566,500.0,0.00036954,120]
[392950259,1762168098774,500.0,0.00036954,120]
[392950260,1762168099031,500.0,0.00036954,120]
[392950261,1762168099257,500.0,0.00036954,120]
[392950262,1762168099302,-195.0,0.00014324,2]
[392950263,1762168099504,500.0,0.00036954,120]
[392950264,1762168099748,500.0,0.00036954,120]
[392950265,1762168100001,500.0,0.00036954,120]
[392950266,1762168100106,502.51,0.00036954,120]
[392950267,1762168100260,403.03959236,0.00036954,120]
[392950268,1762168100345,500.0,0.00036954,120]
[392950269,1762168100444,502.51,0.00036954,120]
[392950270,1762168100620,500.0,0.00036954,120]
[392950271,1762168100703,502.51,0.00036954,120]
[392950272,1762168100801,500.0,0.00036954,120]
[392950273,1762168100875,295.93028517,0.00036954,120]
[392950274,1762168100957,502.51,0.00036954,120]
[392950275,1762168100983,-300.0,0.00014324,2]
[392950276,1762168101065,500.0,0.00036954,120]
[392950277,1762168101140,500.0,0.00036954,120]
[392950278,1762168101227,502.51,0.00036954,120]
[392950279,1762168101303,500.0,0.00036954,120]
[392950280,1762168101377,500.0,0.00036954,120]
[392950281,1762168101450,502.51,0.00036954,120]
[392950282,1762168101545,502.51,0.00036954,120]
[392950283,1762168101624,500.0,0.00036954,120]
[392950284,1762168101746,502.51,0.00036954,120]
[392950285,1762168101819,500.0,0.00036954,120]
[392950286,1762168101887,500.0,0.00036954,120]
[392950287,1762168101992,502.51,0.00036954,120]
[392950288,1762168102088,500.0,0.00036954,120]
[392950289,1762168102161,500.0,0.00036954,120]
[392950290,1762168102244,383.30537713,0.00036954,120]
[392950291,1762168102343,502.51,0.00036954,120]
[392950292,1762168102420,500.0,0.00036954,120]
[392950293,1762168102500,500.0,0.00036954,120]
[392950294,1762168102555,5972.79,0.00013812,2]
[392950295,1762168102636,500.0,0.00036954,120]
[392950296,1762168102712,500.0,0.00036954,120]
[392950297,1762168102808,502.51,0.00036954,120]
[392950298,1762168102879,500.0,0.00036954,120]
[392950299,1762168102952,500.0,0.00036954,120]
[392950300,1762168103085,502.51,0.00036954,120]
[392950301,1762168103158,500.0,0.00036954,120]
[392950302,1762168103258,308.74301351,0.00036954,120]
[392950303,1762168103340,502.51,0.00036954,120]
[392950304,1762168103427,500.0,0.00036954,120]
[392950305,1762168103518,500.0,0.00036954,120]
[392950306,1762168103600,502.51,0.00036954,120]
[392950307,1762168103638,-156.59656831,0.00014324,2]
[392950308,1762168103717,500.0,0.00036954,120]
[392950309,1762168103813,500.0,0.00036954,120]
[392950310,1762168103889,502.51,0.00036954,120]
[392950311,1762168103971,500.0,0.00036954,120]
[392950312,1762168104068,500.0,0.00036954,120]
[392950313,1762168104166,502.51,0.00036954,120]
[392950314,1762168104248,500.0,0.00036954,120]
[392950315,1762168104345,500.0,0.00036954,120]
[392950316,1762168104424,502.51,0.00036954,120]
[392950317,1762168104502,500.0,0.00036954,120]
[392950318,1762168104616,500.0,0.00036954,120]
[392950319,1762168104881,502.51,0.00036954,120]
[392950320,1762168104953,500.0,0.00036954,120]
[392950321,1762168105044,500.0,0.00036954,120]
[392950322,1762168105128,500.0,0.00036954,120]
[392950323,1762168105197,502.51,0.00036954,120]
[392950324,1762168105273,500.0,0.00036954,120]
[392950325,1762168105347,500.0,0.00036954,120]
[392950326,1762168105427,502.51,0.00036954,120]
[392950327,1762168105528,500.0,0.00036954,120]
[392950328,1762168105606,500.0,0.00036954,120]
[392950329,1762168105678,502.51,0.00036954,120]
[392950330,1762168105767,500.0,0.00036954,120]
[392950331,1762168105828,500.0,0.00036954,120]
[392950332,1762168105889,502.51,0.00036954,120]
[392950333,1762168105954,500.0,0.00036954,120]
[392950334,1762168106036,500.0,0.00036954,120]
[392950335,1762168106106,502.51,0.00036954,120]
[392950336,1762168106176,575.65944429,0.00036954,120]
[392950337,1762168106239,601.18410216,0.00036954,120]
[392950338,1762168106306,502.74941022,0.00036954,120]
[392950339,1762168106514,-195.0,0.00014324,2]
[392950340,1762168106864,257.8861753,0.00036954,120]
[392950341,1762168107305,421.06495746,0.00036954,120]
[392950342,1762168107459,211.77124635,0.00036954,120]
[392950343,1762168108004,-159.48062062,0.00014324,2]
[392950344,1762168108340,398.64016262,0.00036954,120]
[392950345,1762168108514,500.0,0.00036954,120]
[392950346,1762168108747,500.0,0.00036954,120]
[392950347,1762168108822,237.0251104,0.00036954,120]
[392950348,1762168108964,500.0,0.00036954,120]
[392950349,1762168109220,500.0,0.00036954,120]
[392950350,1762168109299,491.935165,0.00036954,120]
[392950351,1762168109451,500.0,0.00036954,120]
[392950352,1762168109687,500.0,0.00036954,120]
[392950353,1762168109941,500.0,0.00036954,120]
[392950354,1762168110188,500.0,0.00036954,120]
[392950355,1762168110449,500.0,0.00036954,120]
[392950356,1762168110583,309.64141669,0.00036954,120]
[392950357,1762168110690,500.0,0.00036954,120]
[392950358,1762168110796,429.04054241,0.00036954,120]
[392950359,1762168110924,500.0,0.00036954,120]
[392950360,1762168111016,500.0,0.00036954,120]
[392950361,1762168111096,379.51963437,0.00036954,120]
[392950362,1762168111174,398.52080631,0.00036954,120]
[392950363,1762168111251,500.0,0.00036954,120]
[392950364,1762168111335,500.0,0.00036954,120]
[392950365,1762168111426,279.84344712,0.00036954,120]
[392950366,1762168111496,500.0,0.00036954,120]
[392950367,1762168111688,500.0,0.00036954,120]
[392950368,1762168111913,500.0,0.00036954,120]
[392950369,1762168112503,500.0,0.00036954,120]
[392950370,1762168112576,247.67784472,0.00036954,120]
[392950371,1762168112602,-180.57687324,0.00014324,2]
[392950372,1762168112750,500.0,0.00036954,120]
[392950373,1762168112879,263.4530063,0.00036954,120]
[392950374,1762168112985,500.0,0.00036954,120]
[392950375,1762168113070,173.74415046,0.00036954,120]
[392950376,1762168113242,500.0,0.00036954,120]
[392950377,1762168113501,500.0,0.00036954,120]
[392950378,1762168113578,320.2564355,0.00036954,120]
[392950379,1762168113650,500.0,0.00036954,120]
[392950380,1762168113780,500.0,0.00036954,120]
[392950381,1762168114106,500.0,0.00036954,120]
[392950382,1762168114135,-302.65404159,0.00014324,2]
[392950383,1762168114296,171.27506683,0.00036954,120]
[392950384,1762168114377,182.39810219,0.00036954,120]
[392950385,1762168116024,464.73495524,0.00036954,120]
[392950387,1762168117514,406.59587828,0.00036954,120]
[392950388,1762168118225,362.82500078,0.00036954,120]
[392950389,1762168118638,427.815216,0.00036954,120]
[392950390,1762168119026,186.88091276,0.00036954,120]
[392950391,1762168119195,500.0,0.00036954,120]
[392950392,1762168119428,500.0,0.00036954,120]
[392950393,1762168119666,500.0,0.00036954,120]
[392950394,1762168119881,391.86316951,0.00036954,120]
[392950395,1762168119960,500.0,0.00036954,120]
[392950396,1762168120039,264.91055557,0.00036954,120]
[392950397,1762168120116,500.0,0.00036954,120]
[392950398,1762168120231,176.39855928,0.00036954,120]
[392950399,1762168120308,160.07310499,0.00036954,120]
[392950400,1762168120382,500.0,0.00036954,120]
[392950401,1762168120503,500.0,0.00036954,120]
[392950402,1762168120693,500.0,0.00036954,120]
[392950403,1762168120927,500.0,0.00036954,120]
[392950404,1762168121169,500.0,0.00036954,120]
[392950405,1762168121411,500.0,0.00036954,120]
[392950406,1762168121643,500.0,0.00036954,120]
[392950407,1762168121889,500.0,0.00036954,120]
[392950408,1762168122038,154.85600301,0.00036954,120]
[392950409,1762168122164,500.0,0.00036954,120]
[392950410,1762168122244,435.40570024,0.00036954,120]
[392950411,1762168122328,206.8994818,0.00036954,120]
[392950412,1762168122443,500.0,0.00036954,120]
[392950413,1762168122600,411.06025829,0.00036954,120]
[392950414,1762168123943,447.35308086,0.00036954,120]
[392950415,1762168124151,417.90882805,0.00036954,120]
[392950416,1762168124430,500.0,0.00036954,120]
[392950417,1762168125000,505.55162692,0.00036954,120]
[392950418,1762168125589,458.33498468,0.00036954,120]
[392950419,1762168125669,338.80334784,0.00036954,120]
[392950420,1762168126010,372.58757832,0.00036954,120]
[392950421,1762168128089,222.06229582,0.00036954,120]
[392950422,1762168129500,428.73154229,0.00036954,120]
[392950423,1762168129872,589.55,0.00036954,30]
[392950424,1762168130112,589.55,0.00036954,30]
[392950425,1762168130345,589.55,0.00036954,30]
[392950426,1762168130580,589.55,0.00036954,30]
[392950427,1762168130731,487.62592967,0.00036954,120]
[392950428,1762168130802,177.66591672,0.00036954,120]
[392950429,1762168130872,589.55,0.00036954,30]
[392950430,1762168131065,589.55,0.00036954,30]
[392950431,1762168131297,589.55,0.00036954,30]
[392950432,1762168131605,589.55,0.00036954,30]
[392950433,1762168131863,589.55,0.00036954,30]
[392950434,1762168131993,346.08465177,0.00036954,120]
[392950435,1762168132096,589.55,0.00036954,30]
[392950436,1762168132334,589.55,0.00036954,30]
[392950437,1762168132564,589.55,0.00036954,30]
[392950438,1762168132798,589.55,0.00036954,30]
[392950439,1762168133036,589.55,0.00036954,30]
[392950440,1762168133425,589.55,0.00036954,30]
[392950441,1762168133503,156.03330023,0.00036954,120]
[392950442,1762168133666,589.55,0.00036954,30]
[392950443,1762168133906,589.55,0.00036954,30]
[392950444,1762168134236,589.55,0.00036954,30]
[392950445,1762168134334,283.88003547,0.00036954,120]
[392950446,1762168134483,589.55,0.00036954,30]
[392950447,1762168134772,225.26502839,0.00036954,120]
[392950448,1762168134844,589.55,0.00036954,30]
[392950449,1762168135033,589.55,0.00036954,30]
[392950450,1762168135259,496.63164314,0.00036954,120]
[392950451,1762168135331,589.55,0.00036954,30]
[392950452,1762168135497,589.55,0.00036954,30]
[392950453,1762168135845,589.5791046,0.00036954,30]
[392950454,1762168136881,416.81363253,0.00036954,120]
[392950455,1762168138402,193.20995429,0.00036954,120]
[392950456,1762168138878,428.25839332,0.00036954,120]
[392950457,1762168138960,401.72405385,0.00036954,120]
[392950458,1762168139042,299.52195625,0.00036954,120]
[392950460,1762168139710,216.22948097,0.00036954,120]
[392950461,1762168140409,176.31035264,0.00036954,120]
[392950462,1762168140881,494.36973139,0.00036954,120]
[392950463,1762168141594,624.37343477,0.00036954,120]
[392950464,1762168142201,412.47761964,0.00036954,120]
[392950465,1762168143322,338.10212772,0.00036954,120]
[392950466,1762168143405,266.09893532,0.00036954,120]
[392950467,1762168143486,299.97787606,0.00036954,120]
[392950468,1762168145113,318.75111348,0.00036954,120]
[392950469,1762168145301,418.13095086,0.00036954,120]
[392950470,1762168145409,174.18765007,0.00036954,120]
[392950471,1762168146410,2751.0,0.00013796,2]
[392950472,1762168146932,196.97210477,0.00036954,120]
[392950473,1762168147502,500.0,0.00036954,120]
[392950474,1762168147748,500.0,0.00036954,120]
[392950475,1762168147983,500.0,0.00036954,120]
[392950476,1762168148229,500.0,0.00036954,120]
[392950477,1762168148466,500.0,0.00036954,120]
[392950478,1762168148716,500.0,0.00036954,120]
[392950479,1762168149137,500.0,0.00036954,120]
[392950480,1762168149215,388.61201673,0.00036954,120]
[392950481,1762168149297,500.0,0.00036954,120]
[392950482,1762168149481,500.0,0.00036954,120]
[392950483,1762168149731,500.0,0.00036954,120]
[392950484,1762168149976,500.0,0.00036954,120]
[392950485,1762168150213,500.0,0.00036954,120]
[392950486,1762168150472,500.0,0.00036954,120]
[392950487,1762168150557,297.76873188,0.00036954,120]
[392950488,1762168150693,500.0,0.00036954,120]
[392950489,1762168150935,500.0,0.00036954,120]
[392950490,1762168151033,340.01272106,0.00036954,120]
[392950491,1762168151112,153.67867293,0.00036954,120]
[392950492,1762168151183,500.0,0.00036954,120]
[392950493,1762168151405,622.22943166,0.00036954,120]
[392950494,1762168151959,222.72206548,0.00036954,120]
[392950495,1762168152046,398.9820852,0.00036954,120]
[392950496,1762168152189,197.32338526,0.00036954,120]
[392950497,1762168153672,500.0,0.00036954,120]
[392950498,1762168153753,382.20395911,0.00036954,60]
[392950499,1762168153921,500.0,0.00036954,120]
[392950500,1762168154166,500.0,0.00036954,120]
[392950501,1762168154384,500.0,0.00036954,120]
[392950502,1762168154616,500.0,0.00036954,120]
[392950503,1762168154867,243.9833329,0.00036954,120]
[392950504,1762168154956,359.9128381,0.00036954,120]
[392950505,1762168155386,500.0,0.00036954,120]
[392950506,1762168155498,491.33938162,0.00036954,120]
[392950507,1762168155682,500.0,0.00036954,120]
[392950508,1762168156058,500.0,0.00036954,120]
[392950509,1762168156655,500.0,0.00036954,120]
[392950510,1762168156737,258.1222173,0.00036954,120]
[392950511,1762168156865,345.94093767,0.00036954,120]
[392950512,1762168156943,500.0,0.00036954,120]
[392950513,1762168157189,500.0,0.00036954,120]
[392950514,1762168157600,500.0,0.00036954,120]
[392950515,1762168157677,218.44632982,0.00036954,120]
[392950516,1762168157744,467.28914567,0.00036954,120]
[392950517,1762168158632,500.0,0.00036954,120]
[392950518,1762168158725,478.91781136,0.00036954,120]
[392950520,1762168158859,500.0,0.00036954,120]
[392950523,1762168159366,500.0,0.00036954,120]
[392950525,1762168159448,306.16104347,0.00036954,120]
[392950526,1762168159532,500.0,0.00036954,120]
[392950527,1762168159680,500.0,0.00036954,120]
[392950530,1762168159936,500.0,0.00036954,120]
[392950532,1762168160193,500.0,0.00036954,120]
[392950533,1762168160266,370.24750253,0.00036954,120]
[392950534,1762168160345,258.91658001,0.00036954,120]
[392950536,1762168160440,500.0,0.00036954,120]
[392950537,1762168160649,500.0,0.00036954,120]
[392950539,1762168160876,500.0,0.00036954,120]
[392950541,1762168160959,444.36823637,0.00036954,120]
[392950542,1762168161100,500.0,0.00036954,120]
[392950544,1762168161334,500.0,0.00036954,120]
[392950546,1762168161556,605.85,0.00036954,120]
[392950550,1762168162351,334.03278875,0.00036954,120]
[392950553,1762168162612,227.60788711,0.00036954,120]
[392950556,1762168162948,230.60928685,0.00036954,120]
[392950562,1762168164294,401.07562509,0.00036954,120]
[392950564,1762168164739,226.26743894,0.00036954,120]
[392950565,1762168165561,266.30076917,0.00036954,120]
[392950566,1762168166132,427.39367727,0.00036954,120]
[392950567,1762168166504,291.84594,0.00036954,120]
[392950568,1762168167585,287.80369383,0.00036954,120]
[392950569,1762168167661,429.77263032,0.00036954,120]
[392950570,1762168168071,177.36193011,0.00036954,120]
[392950571,1762168168294,300.5375246,0.00036954,120]
[392950572,1762168170508,420.18130109,0.00036954,120]
[392950573,1762168171029,482.50059276,0.00036954,120]
[392950574,1762168171753,440.50134659,0.00036954,120]
[392950575,1762168172286,346.69127204,0.00036954,120]
[392950576,1762168173231,286.71134461,0.00036954,120]
[392950577,1762168173478,320.3363107,0.00036954,120]
[392950578,1762168173732,500.0,0.00036954,120]
[392950579,1762168173986,500.0,0.00036954,120]
[392950580,1762168174231,500.0,0.00036954,120]
[392950581,1762168174349,470.81406497,0.00036954,120]
[392950582,1762168174484,500.0,0.00036954,120]
[392950583,1762168174732,500.0,0.00036954,120]
[392950584,1762168174810,297.11889189,0.00036954,120]
[392950585,1762168174972,500.0,0.00036954,120]
[392950586,1762168175226,500.0,0.00036954,120]
[392950587,1762168175306,174.63709982,0.00036954,120]
[392950588,1762168175603,500.0,0.00036954,120]
[392950589,1762168175830,500.0,0.00036954,120]
[392950590,1762168176070,482.99444606,0.00036954,120]
[392950591,1762168176148,500.0,0.00036954,120]
[392950592,1762168176319,500.0,0.00036954,120]
[392950593,1762168176556,355.70137436,0.00036954,120]
[392950594,1762168176766,321.26681563,0.00036954,120]
[392950595,1762168178021,270.39439454,0.00036954,120]
[392950596,1762168178644,175.8033976,0.00036954,120]
[392950597,1762168178726,157.03016614,0.00036954,120]
[392950598,1762168179482,252.17366201,0.00036954,120]
[392950599,1762168179801,339.64883748,0.00036954,120]
[392950600,1762168182364,268.37839563,0.00036954,120]
[392950601,1762168182438,374.60326898,0.00036954,120]
[392950602,1762168183174,392.21849783,0.00036954,120]
[392950603,1762168183262,355.38361695,0.00036954,120]
[392950604,1762168184074,76.22,0.00011065,2]
[392950605,1762168184101,87.32,0.00011065,2]
[392950606,1762168184301,324.35288358,0.00036954,120]
[392950607,1762168184339,163.54,0.00012448,2]
[392950608,1762168184506,163.54,0.00013831,2]
[392950610,1762168187326,500.0,0.00036954,120]
[392950611,1762168187562,500.0,0.00036954,120]
[392950612,1762168187794,500.0,0.00036954,120]
[392950613,1762168188034,500.0,0.00036954,120]
[392950614,1762168188227,282.87092295,0.00036954,120]
[392950615,1762168188329,500.0,0.00036954,120]
[392950616,1762168188529,500.0,0.00036954,120]
[392950617,1762168188697,500.0,0.00036954,120]
[392950618,1762168188779,500.0,0.00036954,120]
[392950619,1762168188935,500.0,0.00036954,120]
[392950620,1762168189019,500.0,0.00036954,120]
[392950621,1762168189175,500.0,0.00036954,120]
[392950622,1762168189661,211.56332317,0.00036954,120]
[392950623,1762168190021,500.0,0.00036954,120]
[392950624,1762168190102,500.0,0.00036954,120]
[392950625,1762168190346,500.0,0.00036954,120]
[392950626,1762168190615,500.0,0.00036954,120]
[392950627,1762168190909,500.0,0.00036954,120]
[392950628,1762168191165,500.0,0.00036954,120]
[392950629,1762168191243,168.60906116,0.00036954,120]
[392950630,1762168191409,500.0,0.00036954,120]
[392950631,1762168191525,407.24526711,0.00036954,120]
[392950632,1762168192205,500.0,0.00036954,120]
[392950633,1762168192280,289.51614773,0.00036954,120]
[392950634,1762168192356,315.22822316,0.00036954,120]
[392950635,1762168193414,424.44779415,0.00036954,120]
[392950636,1762168196119,415.91125193,0.00036954,120]
[392950637,1762168196720,277.35018753,0.00036954,120]
[392950638,1762168197648,407.7054409,0.00036954,120]
[392950639,1762168198404,405.56676481,0.00036954,120]
[392950640,1762168198555,500.0,0.00036954,120]
[392950641,1762168198981,500.0,0.00036954,120]
[392950642,1762168199574,500.0,0.00036954,120]
[392950643,1762168199818,500.0,0.00036954,120]
[392950644,1762168200253,500.0,0.00036954,120]
[392950645,1762168200338,500.0,0.00036954,120]
[392950646,1762168200417,311.9801272,0.00036954,120]
[392950647,1762168200547,500.0,0.00036954,120]
[392950648,1762168200622,500.0,0.00036954,120]
[392950649,1762168200770,500.0,0.00036954,120]
[392950650,1762168200846,500.0,0.00036954,120]
[392950651,1762168200925,500.0,0.00036954,120]
[392950652,1762168201001,500.0,0.00036954,120]
[392950653,1762168201077,500.0,0.00036954,120]
[392950654,1762168201148,500.0,0.00036954,120]
[392950655,1762168201261,500.0,0.00036954,120]
[392950656,1762168201335,500.0,0.00036954,120]
[392950657,1762168201495,500.0,0.00036954,120]
[392950658,1762168201586,500.0,0.00036954,120]
[392950659,1762168201760,500.0,0.00036954,120]
[392950660,1762168201842,500.0,0.00036954,120]
[392950661,1762168202012,418.69838787,0.00036954,120]
[392950662,1762168202087,500.0,0.00036954,120]
[392950663,1762168202360,203.34982455,0.00036954,120]
[392950664,1762168204472,317.67947417,0.00036954,120]
[392950665,1762168205671,359.97541204,0.00036954,120]
[392950666,1762168207284,324.95837586,0.00036954,120]
[392950667,1762168207466,442.37862197,0.00036954,120]
[392950669,1762168208082,500.0,0.00036954,120]
[392950670,1762168208508,500.0,0.00036954,120]
[392950671,1762168208759,500.0,0.00036954,120]
[392950672,1762168208995,500.0,0.00036954,120]
[392950673,1762168209942,322.61791075,0.00036954,120]